[Event "*** Titled Tuesday 3|2 Blitz"]
[Site "Chess.com"]
[Date "2015.08.04"]
[Round "1"]
[White "Carolina-moon"]
[Black "Storne89"]
[Result "0-1"]
[WhiteElo "1992"]
[BlackElo "2392"]
[TimeControl "180+2"]
[EndTime "11:39:57 PDT"]
[Termination "Storne89 won on time"]

1. e4 {[%clk 0:03:01.9]} 1... e5 {[%clk 0:02:57.8]} 2. Nf3 {[%clk 0:03:02.2]}
2... Nc6 {[%clk 0:02:58.8]} 3. Bb5 {[%clk 0:03:03.6]} 3... a6 {[%clk 0:02:58.5]}
4. Bxc6 {[%clk 0:03:04.8]} 4... dxc6 {[%clk 0:02:56.1]} 5. O-O {[%clk
0:03:06.7]} 5... f6 {[%clk 0:02:57.1]} 6. d4 {[%clk 0:03:06.4]} 6... exd4 {[%clk
0:02:57]} 7. Nxd4 {[%clk 0:03:07.4]} 7... c5 {[%clk 0:02:58]} 8. Nb3 {[%clk
0:03:08.3]} 8... Qxd1 {[%clk 0:02:58.9]} 9. Rxd1 {[%clk 0:03:09.8]} 9... Bg4
{[%clk 0:02:59.7]} 10. f3 {[%clk 0:03:10.2]} 10... Bd7 {[%clk 0:03:01.3]} 11.
Bf4 {[%clk 0:03:10.6]} 11... O-O-O {[%clk 0:02:53.8]} 12. Nc3 {[%clk 0:03:09.7]}
12... Bc6 {[%clk 0:02:47.8]} 13. Rxd8+ {[%clk 0:03:04.5]} 13... Kxd8 {[%clk
0:02:49.2]} 14. Rd1+ {[%clk 0:03:04.7]} 14... Kc8 {[%clk 0:02:50.8]} 15. Nd5
{[%clk 0:02:42.6]} 15... Bxd5 {[%clk 0:02:51.9]} 16. Rxd5 {[%clk 0:02:39.3]}
16... b6 {[%clk 0:02:40.5]} 17. a4 {[%clk 0:02:38.3]} 17... Ne7 {[%clk
0:02:36.7]} 18. Rd1 {[%clk 0:02:35.3]} 18... Nc6 {[%clk 0:02:35.3]} 19. c3
{[%clk 0:02:28.2]} 19... c4 {[%clk 0:02:27.4]} 20. Nd2 {[%clk 0:02:25.4]} 20...
Bc5+ {[%clk 0:02:27.9]} 21. Kf1 {[%clk 0:02:24.1]} 21... Na5 {[%clk 0:02:24.5]}
22. Ke2 {[%clk 0:02:15.7]} 22... Kb7 {[%clk 0:02:23.2]} 23. Nf1 {[%clk
0:01:56.6]} 23... Kc6 {[%clk 0:02:24.4]} 24. Be3 {[%clk 0:01:56.6]} 24... Bd6
{[%clk 0:02:21.5]} 25. g3 {[%clk 0:01:53.2]} 25... b5 {[%clk 0:02:20.6]} 26.
axb5+ {[%clk 0:01:53.4]} 26... axb5 {[%clk 0:02:21.1]} 27. Ra1 {[%clk
0:01:51.7]} 27... Nb3 {[%clk 0:02:20]} 28. Ra6+ {[%clk 0:01:41.3]} 28... Kd7
{[%clk 0:02:10.6]} 29. Nd2 {[%clk 0:01:25.3]} 29... Nc1+ {[%clk 0:02:09.6]} 30.
Kd1 {[%clk 0:01:22.3]} 30... Nd3 {[%clk 0:01:53.5]} 31. Kc2 {[%clk 0:01:21.6]}
31... Nc5 {[%clk 0:01:54.8]} 32. Bxc5 {[%clk 0:01:20]} 32... Bxc5 {[%clk
0:01:56.4]} 33. b3 {[%clk 0:01:09.1]} 33... cxb3+ {[%clk 0:01:57.4]} 34. Nxb3
{[%clk 0:01:09.8]} 34... Bg1 {[%clk 0:01:59]} 35. h3 {[%clk 0:01:09.6]} 35...
Rb8 {[%clk 0:01:44.8]} 36. Kd3 {[%clk 0:01:07.6]} 36... b4 {[%clk 0:01:43.3]}
37. c4 {[%clk 0:01:07.3]} 37... Rd8 {[%clk 0:01:40.1]} 38. c5 {[%clk 0:00:47.7]}
38... Bf2 {[%clk 0:01:30.2]} 39. g4 {[%clk 0:00:47.7]} 39... h5 {[%clk
0:01:18.7]} 40. Kc4 {[%clk 0:00:48.1]} 40... hxg4 {[%clk 0:01:19.7]} 41. hxg4
{[%clk 0:00:47.1]} 41... Ke7 {[%clk 0:01:15]} 42. Ra7 {[%clk 0:00:38.7]} 42...
Kd7 {[%clk 0:01:11.6]} 43. Kd5 {[%clk 0:00:26.1]} 43... Rb8 {[%clk 0:01:01.6]}
44. c6+ {[%clk 0:00:21.6]} 44... Kc8 {[%clk 0:01:00.5]} 45. Ra4 {[%clk
0:00:19.4]} 45... Kd8 {[%clk 0:00:52.8]} 46. f4 {[%clk 0:00:14.3]} 46... Ke7
{[%clk 0:00:53.5]} 47. e5 {[%clk 0:00:15.3]} 47... fxe5 {[%clk 0:00:53.5]} 48.
Kxe5 {[%clk 0:00:13.4]} 48... Rb5+ {[%clk 0:00:55.1]} 49. Ke4 {[%clk 0:00:12.9]}
49... Kd6 {[%clk 0:00:56.1]} 50. Ra6 {[%clk 0:00:10.7]} 50... Bb6 {[%clk
0:00:52.5]} 51. Kd3 {[%clk 0:00:07.6]} 51... Rd5+ {[%clk 0:00:18]} 52. Ke4
{[%clk 0:00:04.5]} 52... Kxc6 {[%clk 0:00:14.5]} 0-1

[Event "*** Titled Tuesday 3|2 Blitz"]
[Site "Chess.com"]
[Date "2015.08.04"]
[Round "1"]
[White "Haridaskesavan"]
[Black "GMBenjaminBok"]
[Result "0-1"]
[WhiteElo "2037"]
[BlackElo "2432"]
[TimeControl "180+2"]
[EndTime "11:40:18 PDT"]
[Termination "GMBenjaminBok won by checkmate"]

1. a3 {[%clk 0:03:00.7]} 1... e5 {[%clk 0:02:59.6]} 2. g3 {[%clk 0:03:01.7]}
2... d5 {[%clk 0:02:59.4]} 3. Bg2 {[%clk 0:03:02.9]} 3... Nf6 {[%clk 0:02:50.6]}
4. e3 {[%clk 0:03:04]} 4... Nc6 {[%clk 0:02:44.5]} 5. Ne2 {[%clk 0:03:05]} 5...
Be7 {[%clk 0:02:35.6]} 6. d4 {[%clk 0:03:06.1]} 6... e4 {[%clk 0:02:35.2]} 7.
O-O {[%clk 0:03:04.3]} 7... Bf5 {[%clk 0:02:30.8]} 8. Nd2 {[%clk 0:03:04.9]}
8... Qd7 {[%clk 0:02:29.1]} 9. c4 {[%clk 0:03:05]} 9... dxc4 {[%clk 0:02:24.9]}
10. Nxc4 {[%clk 0:03:00.7]} 10... Bh3 {[%clk 0:01:56]} 11. b4 {[%clk 0:02:58]}
11... Bxg2 {[%clk 0:01:48.4]} 12. Kxg2 {[%clk 0:02:59]} 12... Qf5 {[%clk
0:01:44.5]} 13. Ng1 {[%clk 0:02:50.3]} 13... h5 {[%clk 0:01:42.3]} 14. b5 {[%clk
0:02:46.5]} 14... Qxb5 {[%clk 0:01:39.9]} 15. Qc2 {[%clk 0:02:41.4]} 15... O-O-O
{[%clk 0:01:15.4]} 16. Rb1 {[%clk 0:02:38.1]} 16... Qf5 {[%clk 0:01:14.1]} 17.
Qa4 {[%clk 0:02:27.6]} 17... h4 {[%clk 0:01:05.9]} 18. Qb5 {[%clk 0:02:20.5]}
18... Qxb5 {[%clk 0:00:49.2]} 19. Rxb5 {[%clk 0:02:20.7]} 19... a6 {[%clk
0:00:50.6]} 20. Rb3 {[%clk 0:02:09]} 20... b5 {[%clk 0:00:49.5]} 21. Nd2 {[%clk
0:01:58]} 21... Na5 {[%clk 0:00:47.7]} 22. Rb1 {[%clk 0:01:51.7]} 22... c5
{[%clk 0:00:45.1]} 23. Bb2 {[%clk 0:01:47.5]} 23... Kb7 {[%clk 0:00:43.5]} 24.
f3 {[%clk 0:01:36.1]} 24... hxg3 {[%clk 0:00:37.6]} 25. hxg3 {[%clk 0:01:36.5]}
25... exf3+ {[%clk 0:00:34.1]} 26. Ngxf3 {[%clk 0:01:36.8]} 26... Ng4 {[%clk
0:00:33.3]} 27. Rfe1 {[%clk 0:01:30.5]} 27... Rde8 {[%clk 0:00:32.4]} 28. Ne4
{[%clk 0:01:19.8]} 28... Nc4 {[%clk 0:00:29.2]} 29. Bc1 {[%clk 0:01:14.8]} 29...
cxd4 {[%clk 0:00:26.5]} 30. exd4 {[%clk 0:01:13.9]} 30... f5 {[%clk 0:00:25]}
31. Nc3 {[%clk 0:00:57]} 31... Bd6 {[%clk 0:00:17.3]} 32. Bf4 {[%clk 0:00:46.6]}
32... Bxf4 {[%clk 0:00:16.9]} 33. gxf4 {[%clk 0:00:47.6]} 33... Nce3+ {[%clk
0:00:17.2]} 34. Kg3 {[%clk 0:00:35.1]} 34... Rh6 {[%clk 0:00:16.9]} 35. Rh1
{[%clk 0:00:32.8]} 35... Reh8 {[%clk 0:00:15.4]} 36. Rxh6 {[%clk 0:00:32.8]}
36... gxh6 {[%clk 0:00:16.2]} 37. Ne5 {[%clk 0:00:33.7]} 37... Rg8 {[%clk
0:00:15.4]} 38. d5 {[%clk 0:00:30.9]} 38... Nxe5+ {[%clk 0:00:15.1]} 39. Kf2
{[%clk 0:00:30.9]} 39... N3g4+ {[%clk 0:00:13.7]} 40. Ke2 {[%clk 0:00:30.1]}
40... Nc4 {[%clk 0:00:14.5]} 41. Rd1 {[%clk 0:00:27.6]} 41... Re8+ {[%clk
0:00:14.6]} 42. Kf3 {[%clk 0:00:18.9]} 42... Re3+ {[%clk 0:00:14.3]} 43. Kg2
{[%clk 0:00:20.1]} 43... Rxc3 {[%clk 0:00:14.9]} 44. Rd4 {[%clk 0:00:19.8]}
44... Kc7 {[%clk 0:00:13.9]} 45. d6+ {[%clk 0:00:20.7]} 45... Nxd6 {[%clk
0:00:14.2]} 46. Rd2 {[%clk 0:00:19.2]} 46... Ne4 {[%clk 0:00:14.2]} 47. Rb2
{[%clk 0:00:18.9]} 47... h5 {[%clk 0:00:15]} 48. a4 {[%clk 0:00:17.8]} 48... h4
{[%clk 0:00:16.2]} 49. axb5 {[%clk 0:00:17.3]} 49... h3+ {[%clk 0:00:17.1]} 50.
Kf1 {[%clk 0:00:10.9]} 50... axb5 {[%clk 0:00:17.1]} 51. Rb1 {[%clk 0:00:10.2]}
51... Rc2 {[%clk 0:00:15.9]} 52. Rd1 {[%clk 0:00:08.9]} 52... Ng3+ {[%clk
0:00:15.8]} 53. Ke1 {[%clk 0:00:06.9]} 53... Re2# {[%clk 0:00:16.3]} 0-1

[Event "*** Titled Tuesday 3|2 Blitz"]
[Site "Chess.com"]
[Date "2015.08.04"]
[Round "1"]
[White "silverback96"]
[Black "GregShahade"]
[Result "0-1"]
[WhiteElo "1892"]
[BlackElo "2304"]
[TimeControl "180+2"]
[EndTime "11:41:28 PDT"]
[Termination "GregShahade won by resignation"]

1. d4 {[%clk 0:02:55.2]} 1... Nf6 {[%clk 0:03:00.1]} 2. c4 {[%clk 0:02:56]} 2...
e6 {[%clk 0:02:59.3]} 3. g3 {[%clk 0:02:57]} 3... Bb4+ {[%clk 0:02:59.8]} 4. Bd2
{[%clk 0:02:57.5]} 4... Qe7 {[%clk 0:02:59.7]} 5. Nf3 {[%clk 0:02:57.8]} 5...
Nc6 {[%clk 0:02:59.3]} 6. Nc3 {[%clk 0:02:58.3]} 6... O-O {[%clk 0:02:59.2]} 7.
Bg2 {[%clk 0:02:58.3]} 7... Na5 {[%clk 0:02:59.4]} 8. c5 {[%clk 0:02:52.1]} 8...
Nc4 {[%clk 0:02:36.9]} 9. Bg5 {[%clk 0:02:16.8]} 9... Bxc3+ {[%clk 0:01:55.8]}
10. bxc3 {[%clk 0:02:16.3]} 10... d5 {[%clk 0:01:55.7]} 11. Ne5 {[%clk
0:02:08.1]} 11... h6 {[%clk 0:01:26.2]} 12. Bxf6 {[%clk 0:02:08.3]} 12... Qxf6
{[%clk 0:01:27.5]} 13. Nxc4 {[%clk 0:02:09.9]} 13... dxc4 {[%clk 0:01:29.4]} 14.
O-O {[%clk 0:02:11.5]} 14... Rb8 {[%clk 0:01:26]} 15. Qa4 {[%clk 0:02:11.5]}
15... Bd7 {[%clk 0:01:21.4]} 16. Qxc4 {[%clk 0:02:09.4]} 16... a6 {[%clk
0:01:05.6]} 17. Rab1 {[%clk 0:02:07.8]} 17... Bb5 {[%clk 0:01:04]} 18. Qb4
{[%clk 0:01:36.3]} 18... Bxe2 {[%clk 0:01:04.5]} 19. Rfe1 {[%clk 0:01:37.6]}
19... Bd3 {[%clk 0:01:04.8]} 20. Rb2 {[%clk 0:01:35.8]} 20... b5 {[%clk
0:01:00]} 21. Re3 {[%clk 0:01:34.7]} 21... Bc4 {[%clk 0:00:48.9]} 22. Bf1 {[%clk
0:01:35.6]} 22... Bxf1 {[%clk 0:00:48.3]} 23. Kxf1 {[%clk 0:01:36.6]} 23... c6
{[%clk 0:00:38.5]} 24. Qa5 {[%clk 0:01:36.7]} 24... Ra8 {[%clk 0:00:34.9]} 25.
Rbe2 {[%clk 0:01:29.5]} 25... Qf5 {[%clk 0:00:35.4]} 26. Kg2 {[%clk 0:01:29.5]}
26... Qd5+ {[%clk 0:00:35.4]} 27. f3 {[%clk 0:01:29.5]} 27... Rfc8 {[%clk
0:00:36]} 28. Re5 {[%clk 0:01:29.8]} 28... Qc4 {[%clk 0:00:37]} 29. R5e3 {[%clk
0:01:30.8]} 29... Qd5 {[%clk 0:00:37.7]} 30. Re5 {[%clk 0:01:31.2]} 30... Qc4
{[%clk 0:00:38.5]} 31. Rb2 {[%clk 0:01:32.1]} 31... Qd3 {[%clk 0:00:38.4]} 32.
Rbe2 {[%clk 0:01:29.2]} 32... Qd1 {[%clk 0:00:38.2]} 33. h4 {[%clk 0:01:25.3]}
33... g6 {[%clk 0:00:36.9]} 34. h5 {[%clk 0:01:23]} 34... g5 {[%clk 0:00:37.7]}
35. Qb4 {[%clk 0:01:04.3]} 35... a5 {[%clk 0:00:37.5]} 36. Qb2 {[%clk
0:01:04.5]} 36... Qd3 {[%clk 0:00:28.7]} 37. R2e3 {[%clk 0:01:00.5]} 37... Qd1
{[%clk 0:00:26]} 38. Re1 {[%clk 0:00:58.7]} 38... Qd3 {[%clk 0:00:26.8]} 39.
R1e3 {[%clk 0:00:59.7]} 39... Qh7 {[%clk 0:00:27.5]} 40. f4 {[%clk 0:00:59.6]}
40... gxf4 {[%clk 0:00:25.9]} 41. gxf4 {[%clk 0:01:00.6]} 41... Kh8 {[%clk
0:00:27]} 42. Kh2 {[%clk 0:01:01.1]} 42... Rg8 {[%clk 0:00:27.6]} 43. Re2 {[%clk
0:00:48.8]} 43... Rg7 {[%clk 0:00:24.6]} 44. Rg2 {[%clk 0:00:48.9]} 44... Rag8
{[%clk 0:00:25.3]} 45. Ree2 {[%clk 0:00:50.5]} 45... Qf5 {[%clk 0:00:25.4]} 46.
Rxg7 {[%clk 0:00:38.2]} 46... Qxh5+ {[%clk 0:00:24.8]} 47. Kg1 {[%clk
0:00:38.7]} 47... Rxg7+ {[%clk 0:00:26.1]} 48. Rg2 {[%clk 0:00:40.4]} 48... Qd1+
{[%clk 0:00:26.7]} 49. Kh2 {[%clk 0:00:41.2]} 49... Qh5+ {[%clk 0:00:27.7]} 50.
Kg1 {[%clk 0:00:42.5]} 50... Qf3 {[%clk 0:00:27.4]} 51. Rxg7 {[%clk 0:00:41.7]}
51... Kxg7 {[%clk 0:00:29.3]} 52. c4 {[%clk 0:00:41.9]} 52... Qg3+ {[%clk
0:00:22]} 53. Kf1 {[%clk 0:00:38.9]} 53... Qd3+ {[%clk 0:00:22.2]} 54. Kg2
{[%clk 0:00:39]} 54... bxc4 {[%clk 0:00:21.4]} 55. Qf2 {[%clk 0:00:21.3]} 55...
Qe4+ {[%clk 0:00:20.8]} 56. Kh3 {[%clk 0:00:21.8]} 56... Qf5+ {[%clk 0:00:21]}
57. Kh4 {[%clk 0:00:22.9]} 57... Qf6+ {[%clk 0:00:20.9]} 58. Kh5 {[%clk
0:00:23.7]} 58... Qg6+ {[%clk 0:00:21.6]} 59. Kh4 {[%clk 0:00:25.2]} 59... c3
{[%clk 0:00:23.1]} 60. f5 {[%clk 0:00:24.3]} 60... Qg5+ {[%clk 0:00:22.7]} 61.
Kh3 {[%clk 0:00:23.9]} 61... Qxf5+ {[%clk 0:00:21.7]} 62. Qxf5 {[%clk
0:00:25.2]} 62... exf5 {[%clk 0:00:23.1]} 0-1

[Event "*** Titled Tuesday 3|2 Blitz"]
[Site "Chess.com"]
[Date "2015.08.04"]
[Round "2"]
[White "FMCouch"]
[Black "dabee"]
[Result "0-1"]
[WhiteElo "2122"]
[BlackElo "2445"]
[TimeControl "180+2"]
[EndTime "11:45:18 PDT"]
[Termination "dabee won by resignation"]

1. e4 {[%clk 0:03:01.9]} 1... e6 {[%clk 0:03:00.4]} 2. d4 {[%clk 0:03:02.2]}
2... d5 {[%clk 0:03:01.2]} 3. Nc3 {[%clk 0:03:03.9]} 3... dxe4 {[%clk
0:03:02.4]} 4. Nxe4 {[%clk 0:03:04.6]} 4... Bd7 {[%clk 0:03:03.7]} 5. Bd3 {[%clk
0:03:05.2]} 5... Bc6 {[%clk 0:03:04.7]} 6. Nf3 {[%clk 0:03:06.4]} 6... Nd7
{[%clk 0:03:05.4]} 7. O-O {[%clk 0:03:07.5]} 7... Ngf6 {[%clk 0:03:06.4]} 8. Ng3
{[%clk 0:03:08.6]} 8... Be7 {[%clk 0:03:06.2]} 9. Re1 {[%clk 0:03:08]} 9... Bxf3
{[%clk 0:02:54]} 10. Qxf3 {[%clk 0:03:09.9]} 10... c6 {[%clk 0:02:54.5]} 11. b3
{[%clk 0:03:07.9]} 11... O-O {[%clk 0:02:51.1]} 12. Bb2 {[%clk 0:03:08.6]} 12...
a5 {[%clk 0:02:47.9]} 13. c4 {[%clk 0:03:06.3]} 13... a4 {[%clk 0:02:48.3]} 14.
h4 {[%clk 0:03:02.3]} 14... h6 {[%clk 0:02:40.1]} 15. Re2 {[%clk 0:02:55.7]}
15... axb3 {[%clk 0:02:39.9]} 16. axb3 {[%clk 0:02:56.5]} 16... Rxa1+ {[%clk
0:02:40.4]} 17. Bxa1 {[%clk 0:02:58.4]} 17... Qa5 {[%clk 0:02:41.2]} 18. Bb2
{[%clk 0:02:55.2]} 18... Re8 {[%clk 0:02:37.1]} 19. Kh2 {[%clk 0:02:42.4]} 19...
Bd6 {[%clk 0:02:34.6]} 20. Kh3 {[%clk 0:02:40.8]} 20... Qc7 {[%clk 0:02:25.2]}
21. Nf5 {[%clk 0:02:39.7]} 21... exf5 {[%clk 0:02:22.1]} 22. Rxe8+ {[%clk
0:02:38.1]} 22... Nxe8 {[%clk 0:02:22.3]} 23. Qxf5 {[%clk 0:02:34.8]} 23... Ndf6
{[%clk 0:02:22.8]} 24. g4 {[%clk 0:02:32.9]} 24... Qd7 {[%clk 0:02:14.9]} 25.
Qf3 {[%clk 0:02:32.1]} 25... h5 {[%clk 0:02:12.5]} 0-1

[Event "*** Titled Tuesday 3|2 Blitz"]
[Site "Chess.com"]
[Date "2015.08.04"]
[Round "2"]
[White "Caminator2000"]
[Black "aNONoNonono"]
[Result "0-1"]
[WhiteElo "2015"]
[BlackElo "2006"]
[TimeControl "180+2"]
[EndTime "11:46:08 PDT"]
[Termination "aNONoNonono won by resignation"]

1. d4 {[%clk 0:03:01.9]} 1... Nf6 {[%clk 0:03:00]} 2. Nf3 {[%clk 0:03:01.2]}
2... e6 {[%clk 0:03:00.1]} 3. Bf4 {[%clk 0:02:54.6]} 3... b6 {[%clk 0:02:53]} 4.
h3 {[%clk 0:02:52.2]} 4... Bb7 {[%clk 0:02:53.8]} 5. e3 {[%clk 0:02:52.5]} 5...
Be7 {[%clk 0:02:52.3]} 6. Bd3 {[%clk 0:02:52.8]} 6... Ne4 {[%clk 0:02:53]} 7.
O-O {[%clk 0:02:49.7]} 7... O-O {[%clk 0:02:52.9]} 8. Nfd2 {[%clk 0:02:49.5]}
8... Nxd2 {[%clk 0:02:48.1]} 9. Nxd2 {[%clk 0:02:49.6]} 9... d5 {[%clk
0:02:46.1]} 10. e4 {[%clk 0:02:39.2]} 10... dxe4 {[%clk 0:02:45.9]} 11. Bxe4
{[%clk 0:02:39.5]} 11... Bxe4 {[%clk 0:02:44.9]} 12. Nxe4 {[%clk 0:02:41.4]}
12... Nd7 {[%clk 0:02:45.3]} 13. c4 {[%clk 0:02:39.7]} 13... Nf6 {[%clk
0:02:45.2]} 14. Nc3 {[%clk 0:02:39.5]} 14... c5 {[%clk 0:02:42.9]} 15. d5 {[%clk
0:02:37.3]} 15... exd5 {[%clk 0:02:42.8]} 16. cxd5 {[%clk 0:02:37.6]} 16... Bd6
{[%clk 0:02:42.5]} 17. Bg5 {[%clk 0:02:21.2]} 17... h6 {[%clk 0:02:43.3]} 18.
Bxf6 {[%clk 0:02:17.9]} 18... Qxf6 {[%clk 0:02:43.8]} 19. Re1 {[%clk 0:02:02.8]}
19... Rfe8 {[%clk 0:02:42.2]} 20. Ne4 {[%clk 0:01:55.7]} 20... Qd8 {[%clk
0:02:38.6]} 21. Qd2 {[%clk 0:01:49.3]} 21... f5 {[%clk 0:02:24.4]} 22. Nc3
{[%clk 0:01:41.3]} 22... a6 {[%clk 0:02:07.7]} 23. Re6 {[%clk 0:01:38.2]} 23...
Rxe6 {[%clk 0:02:06.7]} 24. dxe6 {[%clk 0:01:36.9]} 24... Bh2+ {[%clk
0:02:06.6]} 0-1

[Event "*** Titled Tuesday 3|2 Blitz"]
[Site "Chess.com"]
[Date "2015.08.04"]
[Round "2"]
[White "Tesla37"]
[Black "Cryptochess"]
[Result "1-0"]
[WhiteElo "2518"]
[BlackElo "2357"]
[TimeControl "180+2"]
[EndTime "11:46:52 PDT"]
[Termination "Tesla37 won by resignation"]

1. e4 {[%clk 0:03:01.9]} 1... d6 {[%clk 0:03:00.7]} 2. d4 {[%clk 0:03:02.5]}
2... Nf6 {[%clk 0:03:02.2]} 3. Nc3 {[%clk 0:03:04.1]} 3... g6 {[%clk 0:03:03.6]}
4. Be3 {[%clk 0:03:02.9]} 4... c6 {[%clk 0:03:03.7]} 5. h3 {[%clk 0:03:03]} 5...
e5 {[%clk 0:03:02.4]} 6. dxe5 {[%clk 0:02:59.9]} 6... dxe5 {[%clk 0:03:04.3]} 7.
Qxd8+ {[%clk 0:03:00.6]} 7... Kxd8 {[%clk 0:03:06.2]} 8. O-O-O+ {[%clk 0:03:00]}
8... Kc7 {[%clk 0:03:06.4]} 9. f4 {[%clk 0:03:00.5]} 9... Nbd7 {[%clk
0:03:04.1]} 10. Nf3 {[%clk 0:03:00.5]} 10... Bd6 {[%clk 0:03:00.6]} 11. Rxd6
{[%clk 0:02:50.8]} 11... Kxd6 {[%clk 0:03:00.8]} 12. Bc4 {[%clk 0:02:52.4]}
12... Re8 {[%clk 0:02:38.2]} 13. fxe5+ {[%clk 0:02:44.8]} 13... Nxe5 {[%clk
0:02:35.7]} 14. Rd1+ {[%clk 0:02:46.1]} 14... Nd5 {[%clk 0:02:18.4]} 15. Nxe5
{[%clk 0:02:38.8]} 15... Kxe5 {[%clk 0:02:05]} 16. exd5 {[%clk 0:02:38.2]} 16...
cxd5 {[%clk 0:01:50.2]} 17. Nxd5 {[%clk 0:02:30.2]} 17... Bf5 {[%clk 0:01:42.4]}
18. Bf4+ {[%clk 0:02:25]} 18... Ke4 {[%clk 0:01:41.9]} 19. c3 {[%clk 0:02:25.9]}
19... Bxh3 {[%clk 0:01:24.9]} 20. gxh3 {[%clk 0:02:16]} 20... Red8 {[%clk
0:01:19.7]} 21. Rd4+ {[%clk 0:02:13]} 21... Kf3 {[%clk 0:01:19.7]} 22. Bg5
{[%clk 0:02:10.2]} 22... Rd6 {[%clk 0:01:16]} 23. Rd3+ {[%clk 0:02:04.9]} 23...
Kf2 {[%clk 0:01:11.6]} 24. Bh4+ {[%clk 0:02:04.5]} 24... Kg1 {[%clk 0:01:12.3]}
25. Bg3 {[%clk 0:01:59.8]} 25... Rc6 {[%clk 0:01:06.6]} 26. Ne3 {[%clk
0:01:55.4]} 1-0

[Event "*** Titled Tuesday 3|2 Blitz"]
[Site "Chess.com"]
[Date "2015.08.04"]
[Round "2"]
[White "Colombiano07"]
[Black "Just-Live-Simply"]
[Result "1-0"]
[WhiteElo "1973"]
[BlackElo "1969"]
[TimeControl "180+2"]
[EndTime "11:48:50 PDT"]
[Termination "Colombiano07 won by checkmate"]

1. e4 {[%clk 0:03:01.9]} 1... e6 {[%clk 0:03:00.6]} 2. d4 {[%clk 0:03:02]} 2...
d5 {[%clk 0:03:00.7]} 3. Nc3 {[%clk 0:03:03.3]} 3... Bb4 {[%clk 0:02:58.8]} 4.
Ne2 {[%clk 0:03:03.5]} 4... dxe4 {[%clk 0:02:58.9]} 5. a3 {[%clk 0:03:03.2]}
5... Be7 {[%clk 0:02:59.6]} 6. Nxe4 {[%clk 0:03:03.8]} 6... Nf6 {[%clk
0:03:00.8]} 7. N2c3 {[%clk 0:03:05.2]} 7... Nbd7 {[%clk 0:03:00.8]} 8. Bd3
{[%clk 0:03:05.5]} 8... O-O {[%clk 0:02:59.3]} 9. O-O {[%clk 0:03:05.9]} 9... b6
{[%clk 0:02:59.9]} 10. Qf3 {[%clk 0:03:05.5]} 10... Rb8 {[%clk 0:02:59.8]} 11.
Qh3 {[%clk 0:03:02]} 11... Bb7 {[%clk 0:02:57.9]} 12. Bg5 {[%clk 0:03:02.1]}
12... Nxe4 {[%clk 0:02:05.7]} 13. Bxe7 {[%clk 0:02:53.7]} 13... Qxe7 {[%clk
0:02:04]} 14. Nxe4 {[%clk 0:02:50.6]} 14... h6 {[%clk 0:02:05]} 15. Rfe1 {[%clk
0:02:49.5]} 15... Nf6 {[%clk 0:02:05.1]} 16. c3 {[%clk 0:02:44.5]} 16... Nxe4
{[%clk 0:02:05.1]} 17. Bxe4 {[%clk 0:02:45.6]} 17... Bxe4 {[%clk 0:02:07]} 18.
Rxe4 {[%clk 0:02:47.1]} 18... Qd7 {[%clk 0:01:58.9]} 19. Rae1 {[%clk 0:02:46.2]}
19... c5 {[%clk 0:01:56.9]} 20. Rg4 {[%clk 0:02:42.2]} 20... Kh8 {[%clk
0:01:52.6]} 21. Qg3 {[%clk 0:02:43.1]} 21... f5 {[%clk 0:01:36.7]} 22. Rg6
{[%clk 0:02:41.4]} 22... cxd4 {[%clk 0:01:33.4]} 23. cxd4 {[%clk 0:02:43.3]}
23... Qxd4 {[%clk 0:01:29.9]} 24. Rgxe6 {[%clk 0:02:36.7]} 24... f4 {[%clk
0:01:16.9]} 25. Qg6 {[%clk 0:02:33]} 25... f3 {[%clk 0:01:16]} 26. g3 {[%clk
0:02:27.1]} 26... Qxb2 {[%clk 0:01:06.4]} 27. Re7 {[%clk 0:02:24.6]} 27... Qf6
{[%clk 0:01:04.5]} 28. Qxf6 {[%clk 0:02:22.1]} 28... Rxf6 {[%clk 0:01:06.4]} 29.
Rxa7 {[%clk 0:02:24]} 29... Rc8 {[%clk 0:01:05]} 30. h3 {[%clk 0:02:14.2]} 30...
Rc2 {[%clk 0:01:04.9]} 31. g4 {[%clk 0:02:12.3]} 31... Rd6 {[%clk 0:01:03.9]}
32. Re8+ {[%clk 0:02:06]} 32... Kh7 {[%clk 0:01:04.7]} 33. Ree7 {[%clk
0:02:07.9]} 33... Rd1+ {[%clk 0:01:02]} 34. Kh2 {[%clk 0:02:08.7]} 34... Rxf2+
{[%clk 0:01:02.4]} 35. Kg3 {[%clk 0:02:10.2]} 35... Rdd2 {[%clk 0:00:54.3]} 36.
Rxg7+ {[%clk 0:02:10]} 36... Kh8 {[%clk 0:00:55.7]} 37. Rgb7 {[%clk 0:02:05.5]}
37... Rg2+ {[%clk 0:00:53]} 38. Kxf3 {[%clk 0:01:52.8]} 38... Rdf2+ {[%clk
0:00:53.7]} 39. Ke3 {[%clk 0:01:53.9]} 39... Re2+ {[%clk 0:00:54.7]} 40. Kd3
{[%clk 0:01:55.4]} 40... Rd2+ {[%clk 0:00:55.1]} 41. Kc4 {[%clk 0:01:56.5]}
41... Rc2+ {[%clk 0:00:56]} 42. Kb5 {[%clk 0:01:57.8]} 42... Rb2+ {[%clk
0:00:56.7]} 43. Ka6 {[%clk 0:01:58.7]} 43... Rbf2 {[%clk 0:00:32.8]} 44. Ra8+
{[%clk 0:01:57.8]} 44... Rf8 {[%clk 0:00:34.7]} 45. Rxf8# {[%clk 0:01:58.8]} 1-0